{"text_format":"3","workbook":"xlsx","n_sheets":4,"sheets":["Monatsbudgetübersicht","Einkünfte","Persönliche Ausgaben","Betriebsausgaben"],"not_rendered":{"charts":1,"defined_names":14},"read":"whole","date_system":"1900"}

{"sheet":"Monatsbudgetübersicht","index":0,"n_rows":17,"n_cols":5,"rows_kept":17,"merged":[[1,1,1,3],[1,4,1,5],[8,1,8,4]]}
[null,"FIRMENNAME"]
[null,"MONATSBUDGET",null,null,"Datum"]
[]
[null,"BUDGETSUMMEN","GESCHÄTZT","TATSÄCHLICH","DIFFERENZ"]
[null,"Einkünfte",{"$f":"Einnahmen[[#Totals],[GESCHÄTZT]]","v":{"v":63300,"d":"63,300.00"}},{"$f":"Einnahmen[[#Totals],[TATSÄCHLICH]]","v":{"v":57450,"d":"57,450.00"}},{"$f":"Summen[[#This Row],[TATSÄCHLICH]]-Summen[[#This Row],[GESCHÄTZT]]","v":{"v":-5850,"d":"-5,850.00 "}}]
[null,"Ausgaben",{"$f":"Betriebsausgaben[[#Totals],[GESCHÄTZT]]+Personalkosten[[#Totals],[GESCHÄTZT]]","v":{"v":54500,"d":"54,500.00"}},{"$f":"Betriebsausgaben[[#Totals],[TATSÄCHLICH]]+Personalkosten[[#Totals],[TATSÄCHLICH]]","v":{"v":49630,"d":"49,630.00"}},{"$f":"Summen[[#This Row],[TATSÄCHLICH]]-Summen[[#This Row],[GESCHÄTZT]]","v":{"v":-4870,"d":"-4,870.00 "}}]
[null,"Saldo (Einkünfte minus Ausgaben)",{"$f":"C5-C6","v":{"v":8800,"d":"8,800.00"}},{"$f":"D5-D6","v":{"v":7820,"d":"7,820.00"}},{"$f":"Summen[[#Totals],[TATSÄCHLICH]]-Summen[[#Totals],[GESCHÄTZT]]","v":{"v":-980,"d":"-980.00 "}}]
[]
[null,"Das Budgetübersichtsdiagramm befindet sich in dieser Zelle. Die 5 höchsten Betriebsausgaben werden in der Tabelle Top5Ausgaben unten automatisch aktualisiert."]
[null,"WAS SIND DIE TOP 5 MEINER BETRIEBSAUSGABEN?"]
[null,"AUSGABE","BETRAG","% DER AUSGABEN","15 % ABZUG"]
[null,{"$f":"INDEX(Betriebsausgaben[],MATCH(Top5Ausgaben[[#This Row],[BETRAG]],Betriebsausgaben[TOP 5-BETRAG],0),1)","v":"Wartung und Reparaturen"},{"$f":"LARGE(Betriebsausgaben[TOP 5-BETRAG],1)","v":{"v":4600.000014,"d":"4,600.00"}},{"$f":"Top5Ausgaben[[#This Row],[BETRAG]]/$D$6","v":{"v":0.09268587576062866,"d":"9.3%"}},{"$f":"Top5Ausgaben[[#This Row],[BETRAG]]*0.15","v":{"v":690.0000021,"d":"690.00"}}]
[null,{"$f":"INDEX(Betriebsausgaben[],MATCH(Top5Ausgaben[[#This Row],[BETRAG]],Betriebsausgaben[TOP 5-BETRAG],0),1)","v":"Betriebsmittel"},{"$f":"LARGE(Betriebsausgaben[TOP 5-BETRAG],2)","v":{"v":4500.00002,"d":"4,500.00"}},{"$f":"Top5Ausgaben[[#This Row],[BETRAG]]/$D$6","v":{"v":0.09067096554503326,"d":"9.1%"}},{"$f":"Top5Ausgaben[[#This Row],[BETRAG]]*0.15","v":{"v":675.000003,"d":"675.00"}}]
[null,{"$f":"INDEX(Betriebsausgaben[],MATCH(Top5Ausgaben[[#This Row],[BETRAG]],Betriebsausgaben[TOP 5-BETRAG],0),1)","v":"Miete oder Hypothek"},{"$f":"LARGE(Betriebsausgaben[TOP 5-BETRAG],3)","v":{"v":4500.000017,"d":"4,500.00"}},{"$f":"Top5Ausgaben[[#This Row],[BETRAG]]/$D$6","v":{"v":0.09067096548458595,"d":"9.1%"}},{"$f":"Top5Ausgaben[[#This Row],[BETRAG]]*0.15","v":{"v":675.00000255,"d":"675.00"}}]
[null,{"$f":"INDEX(Betriebsausgaben[],MATCH(Top5Ausgaben[[#This Row],[BETRAG]],Betriebsausgaben[TOP 5-BETRAG],0),1)","v":"Steuern"},{"$f":"LARGE(Betriebsausgaben[TOP 5-BETRAG],4)","v":{"v":3200.000021,"d":"3,200.00"}},{"$f":"Top5Ausgaben[[#This Row],[BETRAG]]/$D$6","v":{"v":0.06447713119081201,"d":"6.4%"}},{"$f":"Top5Ausgaben[[#This Row],[BETRAG]]*0.15","v":{"v":480.00000314999994,"d":"480.00"}}]
[null,{"$f":"INDEX(Betriebsausgaben[],MATCH(Top5Ausgaben[[#This Row],[BETRAG]],Betriebsausgaben[TOP 5-BETRAG],0),1)","v":"Werbung"},{"$f":"LARGE(Betriebsausgaben[TOP 5-BETRAG],5)","v":{"v":2500.000005,"d":"2,500.00"}},{"$f":"Top5Ausgaben[[#This Row],[BETRAG]]/$D$6","v":{"v":0.05037275851299617,"d":"5.0%"}},{"$f":"Top5Ausgaben[[#This Row],[BETRAG]]*0.15","v":{"v":375.00000074999997,"d":"375.00"}}]
[null,"Ergebnis",{"$f":"SUBTOTAL(109,Top5Ausgaben[BETRAG])","v":{"v":19300.000077000004,"d":"19,300.00"}},{"$f":"SUBTOTAL(109,Top5Ausgaben[% DER AUSGABEN])","v":{"v":0.388877696494056,"d":"38.9%"}},{"$f":"SUBTOTAL(109,Top5Ausgaben[15 % ABZUG])","v":{"v":2895.0000115499997,"d":"2,895.00"}}]

{"sheet":"Einkünfte","index":1,"n_rows":8,"n_cols":6,"rows_kept":8,"merged":[[1,1,1,3]]}
[null,{"$f":"FIRMEN_NAME","v":"FIRMENNAME"}]
[null,{"$f":"BUDGET_Titel","v":"MONATSBUDGET"}]
[]
[null,"EINKÜNFTE","GESCHÄTZT","TATSÄCHLICH","TOP 5-BETRAG","DIFFERENZ"]
[null,"Nettoumsätze",{"v":60000,"d":"60,000.00"},{"v":54000,"d":"54,000.00"},{"$f":"Einnahmen[[#This Row],[TATSÄCHLICH]]+(10^-6)*ROW(Einnahmen[[#This Row],[TATSÄCHLICH]])","v":{"v":54000.000005,"d":"54,000.00"}},{"$f":"Einnahmen[[#This Row],[TATSÄCHLICH]]-Einnahmen[[#This Row],[GESCHÄTZT]]","v":{"v":-6000,"d":"-6,000.00 "}}]
[null,"Zinseinkünfte",{"v":3000,"d":"3,000.00"},{"v":3000,"d":"3,000.00"},{"$f":"Einnahmen[[#This Row],[TATSÄCHLICH]]+(10^-6)*ROW(Einnahmen[[#This Row],[TATSÄCHLICH]])","v":{"v":3000.000006,"d":"3,000.00"}},{"$f":"Einnahmen[[#This Row],[TATSÄCHLICH]]-Einnahmen[[#This Row],[GESCHÄTZT]]","v":{"v":0,"d":"0.00"}}]
[null,"Verkauf von Vermögenswerten (Gewinn/Verlust)",{"v":300,"d":"300.00"},{"v":450,"d":"450.00"},{"$f":"Einnahmen[[#This Row],[TATSÄCHLICH]]+(10^-6)*ROW(Einnahmen[[#This Row],[TATSÄCHLICH]])","v":{"v":450.000007,"d":"450.00"}},{"$f":"Einnahmen[[#This Row],[TATSÄCHLICH]]-Einnahmen[[#This Row],[GESCHÄTZT]]","v":{"v":150,"d":"150.00"}}]
[null,"Einkünfte gesamt",{"$f":"SUBTOTAL(109,Einnahmen[GESCHÄTZT])","v":{"v":63300,"d":"63,300.00"}},{"$f":"SUBTOTAL(109,Einnahmen[TATSÄCHLICH])","v":{"v":57450,"d":"57,450.00"}},null,{"$f":"SUBTOTAL(109,Einnahmen[DIFFERENZ])","v":{"v":-5850,"d":"-5,850.00 "}}]

{"sheet":"Persönliche Ausgaben","index":2,"n_rows":8,"n_cols":6,"rows_kept":8,"merged":[[1,1,1,3]]}
[null,{"$f":"FIRMEN_NAME","v":"FIRMENNAME"}]
[null,{"$f":"BUDGET_Titel","v":"MONATSBUDGET"}]
[]
[null,"PERSÖNLICHE AUSGABEN","GESCHÄTZT","TATSÄCHLICH","TOP 5-BETRAG","DIFFERENZ"]
[null,"Gehälter",{"v":9500,"d":"9,500.00"},{"v":9600,"d":"9,600.00"},{"$f":"Personalkosten[[#This Row],[TATSÄCHLICH]]+(10^-6)*ROW(Personalkosten[[#This Row],[TATSÄCHLICH]])","v":{"v":9600.000005,"d":"9,600.00"}},{"$f":"Personalkosten[[#This Row],[GESCHÄTZT]]-Personalkosten[[#This Row],[TATSÄCHLICH]]","v":{"v":-100,"d":"-100.00 "}}]
[null,"Mitarbeiterboni",{"v":4000,"d":"4,000.00"},{"v":0,"d":"0.00"},{"$f":"Personalkosten[[#This Row],[TATSÄCHLICH]]+(10^-6)*ROW(Personalkosten[[#This Row],[TATSÄCHLICH]])","v":{"v":6e-06,"d":"0.00"}},{"$f":"Personalkosten[[#This Row],[GESCHÄTZT]]-Personalkosten[[#This Row],[TATSÄCHLICH]]","v":{"v":4000,"d":"4,000.00"}}]
[null,"Kommission",{"v":5000,"d":"5,000.00"},{"v":4500,"d":"4,500.00"},{"$f":"Personalkosten[[#This Row],[TATSÄCHLICH]]+(10^-6)*ROW(Personalkosten[[#This Row],[TATSÄCHLICH]])","v":{"v":4500.000007,"d":"4,500.00"}},{"$f":"Personalkosten[[#This Row],[GESCHÄTZT]]-Personalkosten[[#This Row],[TATSÄCHLICH]]","v":{"v":500,"d":"500.00"}}]
[null,"Persönliche Ausgaben gesamt",{"$f":"SUBTOTAL(109,Personalkosten[GESCHÄTZT])","v":{"v":18500,"d":"18,500.00"}},{"$f":"SUBTOTAL(109,Personalkosten[TATSÄCHLICH])","v":{"v":14100,"d":"14,100.00"}},null,{"$f":"SUBTOTAL(109,Personalkosten[DIFFERENZ])","v":{"v":4400,"d":"4,400.00"}}]

{"sheet":"Betriebsausgaben","index":3,"n_rows":25,"n_cols":6,"rows_kept":25,"merged":[[1,1,1,3]]}
[null,{"$f":"FIRMEN_NAME","v":"FIRMENNAME"}]
[null,{"$f":"BUDGET_Titel","v":"MONATSBUDGET"}]
[]
[null,"BETRIEBSAUSGABEN","GESCHÄTZT","TATSÄCHLICH","TOP 5-BETRAG","DIFFERENZ"]
[null,"Werbung",{"v":3000,"d":"3,000.00"},{"v":2500,"d":"2,500.00"},{"$f":"Betriebsausgaben[[#This Row],[TATSÄCHLICH]]+(10^-6)*ROW(Betriebsausgaben[[#This Row],[TATSÄCHLICH]])","v":{"v":2500.000005,"d":"2,500.00"}},{"$f":"Betriebsausgaben[[#This Row],[GESCHÄTZT]]-Betriebsausgaben[[#This Row],[TATSÄCHLICH]]","v":{"v":500,"d":"500.00"}}]
[null,"Uneinbringliche Forderungen",{"v":2000,"d":"2,000.00"},{"v":2000,"d":"2,000.00"},{"$f":"Betriebsausgaben[[#This Row],[TATSÄCHLICH]]+(10^-6)*ROW(Betriebsausgaben[[#This Row],[TATSÄCHLICH]])","v":{"v":2000.000006,"d":"2,000.00"}},{"$f":"Betriebsausgaben[[#This Row],[GESCHÄTZT]]-Betriebsausgaben[[#This Row],[TATSÄCHLICH]]","v":{"v":0,"d":"0.00"}}]
[null,"Skonti",{"v":1500,"d":"1,500.00"},{"v":2175,"d":"2,175.00"},{"$f":"Betriebsausgaben[[#This Row],[TATSÄCHLICH]]+(10^-6)*ROW(Betriebsausgaben[[#This Row],[TATSÄCHLICH]])","v":{"v":2175.000007,"d":"2,175.00"}},{"$f":"Betriebsausgaben[[#This Row],[GESCHÄTZT]]-Betriebsausgaben[[#This Row],[TATSÄCHLICH]]","v":{"v":-675,"d":"-675.00 "}}]
[null,"Lieferkosten",{"v":2000,"d":"2,000.00"},{"v":1500,"d":"1,500.00"},{"$f":"Betriebsausgaben[[#This Row],[TATSÄCHLICH]]+(10^-6)*ROW(Betriebsausgaben[[#This Row],[TATSÄCHLICH]])","v":{"v":1500.000008,"d":"1,500.00"}},{"$f":"Betriebsausgaben[[#This Row],[GESCHÄTZT]]-Betriebsausgaben[[#This Row],[TATSÄCHLICH]]","v":{"v":500,"d":"500.00"}}]
[null,"Abschreibung",{"v":1000,"d":"1,000.00"},{"v":1000,"d":"1,000.00"},{"$f":"Betriebsausgaben[[#This Row],[TATSÄCHLICH]]+(10^-6)*ROW(Betriebsausgaben[[#This Row],[TATSÄCHLICH]])","v":{"v":1000.000009,"d":"1,000.00"}},{"$f":"Betriebsausgaben[[#This Row],[GESCHÄTZT]]-Betriebsausgaben[[#This Row],[TATSÄCHLICH]]","v":{"v":0,"d":"0.00"}}]
[null,"Abgaben und Daueraufträge",{"v":500,"d":"500.00"},{"v":525,"d":"525.00"},{"$f":"Betriebsausgaben[[#This Row],[TATSÄCHLICH]]+(10^-6)*ROW(Betriebsausgaben[[#This Row],[TATSÄCHLICH]])","v":{"v":525.00001,"d":"525.00"}},{"$f":"Betriebsausgaben[[#This Row],[GESCHÄTZT]]-Betriebsausgaben[[#This Row],[TATSÄCHLICH]]","v":{"v":-25,"d":"-25.00 "}}]
[null,"Versicherungen",{"v":1300,"d":"1,300.00"},{"v":1275,"d":"1,275.00"},{"$f":"Betriebsausgaben[[#This Row],[TATSÄCHLICH]]+(10^-6)*ROW(Betriebsausgaben[[#This Row],[TATSÄCHLICH]])","v":{"v":1275.000011,"d":"1,275.00"}},{"$f":"Betriebsausgaben[[#This Row],[GESCHÄTZT]]-Betriebsausgaben[[#This Row],[TATSÄCHLICH]]","v":{"v":25,"d":"25.00"}}]
[null,"Zinsen",{"v":2000,"d":"2,000.00"},{"v":2200,"d":"2,200.00"},{"$f":"Betriebsausgaben[[#This Row],[TATSÄCHLICH]]+(10^-6)*ROW(Betriebsausgaben[[#This Row],[TATSÄCHLICH]])","v":{"v":2200.000012,"d":"2,200.00"}},{"$f":"Betriebsausgaben[[#This Row],[GESCHÄTZT]]-Betriebsausgaben[[#This Row],[TATSÄCHLICH]]","v":{"v":-200,"d":"-200.00 "}}]
[null,"Rechts- und Beratungskosten",{"v":1000,"d":"1,000.00"},{"v":800,"d":"800.00"},{"$f":"Betriebsausgaben[[#This Row],[TATSÄCHLICH]]+(10^-6)*ROW(Betriebsausgaben[[#This Row],[TATSÄCHLICH]])","v":{"v":800.000013,"d":"800.00"}},{"$f":"Betriebsausgaben[[#This Row],[GESCHÄTZT]]-Betriebsausgaben[[#This Row],[TATSÄCHLICH]]","v":{"v":200,"d":"200.00"}}]
[null,"Wartung und Reparaturen",{"v":4500,"d":"4,500.00"},{"v":4600,"d":"4,600.00"},{"$f":"Betriebsausgaben[[#This Row],[TATSÄCHLICH]]+(10^-6)*ROW(Betriebsausgaben[[#This Row],[TATSÄCHLICH]])","v":{"v":4600.000014,"d":"4,600.00"}},{"$f":"Betriebsausgaben[[#This Row],[GESCHÄTZT]]-Betriebsausgaben[[#This Row],[TATSÄCHLICH]]","v":{"v":-100,"d":"-100.00 "}}]
[null,"Büromaterial",{"v":800,"d":"800.00"},{"v":750,"d":"750.00"},{"$f":"Betriebsausgaben[[#This Row],[TATSÄCHLICH]]+(10^-6)*ROW(Betriebsausgaben[[#This Row],[TATSÄCHLICH]])","v":{"v":750.000015,"d":"750.00"}},{"$f":"Betriebsausgaben[[#This Row],[GESCHÄTZT]]-Betriebsausgaben[[#This Row],[TATSÄCHLICH]]","v":{"v":50,"d":"50.00"}}]
[null,"Porti",{"v":400,"d":"400.00"},{"v":350,"d":"350.00"},{"$f":"Betriebsausgaben[[#This Row],[TATSÄCHLICH]]+(10^-6)*ROW(Betriebsausgaben[[#This Row],[TATSÄCHLICH]])","v":{"v":350.000016,"d":"350.00"}},{"$f":"Betriebsausgaben[[#This Row],[GESCHÄTZT]]-Betriebsausgaben[[#This Row],[TATSÄCHLICH]]","v":{"v":50,"d":"50.00"}}]
[null,"Miete oder Hypothek",{"v":4100,"d":"4,100.00"},{"v":4500,"d":"4,500.00"},{"$f":"Betriebsausgaben[[#This Row],[TATSÄCHLICH]]+(10^-6)*ROW(Betriebsausgaben[[#This Row],[TATSÄCHLICH]])","v":{"v":4500.000017,"d":"4,500.00"}},{"$f":"Betriebsausgaben[[#This Row],[GESCHÄTZT]]-Betriebsausgaben[[#This Row],[TATSÄCHLICH]]","v":{"v":-400,"d":"-400.00 "}}]
[null,"Vertriebsausgaben",{"v":350,"d":"350.00"},{"v":400,"d":"400.00"},{"$f":"Betriebsausgaben[[#This Row],[TATSÄCHLICH]]+(10^-6)*ROW(Betriebsausgaben[[#This Row],[TATSÄCHLICH]])","v":{"v":400.000018,"d":"400.00"}},{"$f":"Betriebsausgaben[[#This Row],[GESCHÄTZT]]-Betriebsausgaben[[#This Row],[TATSÄCHLICH]]","v":{"v":-50,"d":"-50.00 "}}]
[null,"Versand und Lagerhaltung",{"v":900,"d":"900.00"},{"v":840,"d":"840.00"},{"$f":"Betriebsausgaben[[#This Row],[TATSÄCHLICH]]+(10^-6)*ROW(Betriebsausgaben[[#This Row],[TATSÄCHLICH]])","v":{"v":840.000019,"d":"840.00"}},{"$f":"Betriebsausgaben[[#This Row],[GESCHÄTZT]]-Betriebsausgaben[[#This Row],[TATSÄCHLICH]]","v":{"v":60,"d":"60.00"}}]
[null,"Betriebsmittel",{"v":5000,"d":"5,000.00"},{"v":4500,"d":"4,500.00"},{"$f":"Betriebsausgaben[[#This Row],[TATSÄCHLICH]]+(10^-6)*ROW(Betriebsausgaben[[#This Row],[TATSÄCHLICH]])","v":{"v":4500.00002,"d":"4,500.00"}},{"$f":"Betriebsausgaben[[#This Row],[GESCHÄTZT]]-Betriebsausgaben[[#This Row],[TATSÄCHLICH]]","v":{"v":500,"d":"500.00"}}]
[null,"Steuern",{"v":3000,"d":"3,000.00"},{"v":3200,"d":"3,200.00"},{"$f":"Betriebsausgaben[[#This Row],[TATSÄCHLICH]]+(10^-6)*ROW(Betriebsausgaben[[#This Row],[TATSÄCHLICH]])","v":{"v":3200.000021,"d":"3,200.00"}},{"$f":"Betriebsausgaben[[#This Row],[GESCHÄTZT]]-Betriebsausgaben[[#This Row],[TATSÄCHLICH]]","v":{"v":-200,"d":"-200.00 "}}]
[null,"Telefon",{"v":250,"d":"250.00"},{"v":280,"d":"280.00"},{"$f":"Betriebsausgaben[[#This Row],[TATSÄCHLICH]]+(10^-6)*ROW(Betriebsausgaben[[#This Row],[TATSÄCHLICH]])","v":{"v":280.000022,"d":"280.00"}},{"$f":"Betriebsausgaben[[#This Row],[GESCHÄTZT]]-Betriebsausgaben[[#This Row],[TATSÄCHLICH]]","v":{"v":-30,"d":"-30.00 "}}]
[null,"Nebenkosten",{"v":1400,"d":"1,400.00"},{"v":1385,"d":"1,385.00"},{"$f":"Betriebsausgaben[[#This Row],[TATSÄCHLICH]]+(10^-6)*ROW(Betriebsausgaben[[#This Row],[TATSÄCHLICH]])","v":{"v":1385.000023,"d":"1,385.00"}},{"$f":"Betriebsausgaben[[#This Row],[GESCHÄTZT]]-Betriebsausgaben[[#This Row],[TATSÄCHLICH]]","v":{"v":15,"d":"15.00"}}]
[null,"Sonstiges",{"v":1000,"d":"1,000.00"},{"v":750,"d":"750.00"},{"$f":"Betriebsausgaben[[#This Row],[TATSÄCHLICH]]+(10^-6)*ROW(Betriebsausgaben[[#This Row],[TATSÄCHLICH]])","v":{"v":750.000024,"d":"750.00"}},{"$f":"Betriebsausgaben[[#This Row],[GESCHÄTZT]]-Betriebsausgaben[[#This Row],[TATSÄCHLICH]]","v":{"v":250,"d":"250.00"}}]
[null,"Summe Betriebsausgaben",{"$f":"SUBTOTAL(109,Betriebsausgaben[GESCHÄTZT])","v":{"v":36000,"d":"36,000.00"}},{"$f":"SUBTOTAL(109,Betriebsausgaben[TATSÄCHLICH])","v":{"v":35530,"d":"35,530.00"}},null,{"$f":"SUBTOTAL(109,Betriebsausgaben[DIFFERENZ])","v":{"v":470,"d":"470.00"}}]